[Event "Early-Titled-Tuesday-Blitz-February-13-2024"]
[Site "Chess.com"]
[Date "2024.02.13"]
[Round "6"]
[White "LaPiToB"]
[Black "AttilaTurzo"]
[Result "0-1"]
[WhiteElo "2308"]
[BlackElo "2479"]
[TimeControl "180+1"]
[EndTime "9:10:42 PST"]
[Termination "AttilaTurzo won by resignation"]

1. d4 {[%clk 0:02:57.1]} 1... Nf6 {[%clk 0:02:59.2]} 2. c4 {[%clk 0:02:56.7]}
2... e6 {[%clk 0:02:59.7]} 3. Nf3 {[%clk 0:02:55.9]} 3... d5 {[%clk 0:02:59.5]}
4. Nc3 {[%clk 0:02:54.5]} 4... Bb4 {[%clk 0:02:59.6]} 5. cxd5 {[%clk 0:02:51.7]}
5... exd5 {[%clk 0:02:58.9]} 6. Bg5 {[%clk 0:02:51.7]} 6... h6 {[%clk
0:02:59.1]} 7. Bh4 {[%clk 0:02:51.4]} 7... O-O {[%clk 0:02:55.2]} 8. Qc2 {[%clk
0:02:47.9]} 8... c5 {[%clk 0:02:51]} 9. Rd1 {[%clk 0:02:34.5]} 9... cxd4 {[%clk
0:02:38]} 10. Rxd4 {[%clk 0:02:25.6]} 10... Nc6 {[%clk 0:02:37.2]} 11. Rd1
{[%clk 0:02:09.7]} 11... d4 {[%clk 0:02:35.4]} 12. a3 {[%clk 0:02:08.7]} 12...
Be7 {[%clk 0:02:21.5]} 13. e3 {[%clk 0:01:58.9]} 13... Qa5 {[%clk 0:02:03.1]}
14. Nxd4 {[%clk 0:01:51.2]} 14... Nxd4 {[%clk 0:02:01.8]} 15. Rxd4 {[%clk
0:01:48.2]} 15... Bf5 {[%clk 0:02:01.9]} 16. Bd3 {[%clk 0:01:37.7]} 16... Be6
{[%clk 0:01:49.5]} 17. O-O {[%clk 0:01:32.1]} 17... Rac8 {[%clk 0:01:49.5]} 18.
Ra4 {[%clk 0:01:24.9]} 18... Qb6 {[%clk 0:01:46.4]} 19. Qe2 {[%clk 0:01:19.5]}
19... Bb3 {[%clk 0:01:35.9]} 20. Rd4 {[%clk 0:01:10.7]} 20... Bxa3 {[%clk
0:01:33.9]} 21. bxa3 {[%clk 0:01:04.7]} 21... Rxc3 {[%clk 0:01:32.4]} 22. Rb1
{[%clk 0:00:55.6]} 22... Qe6 {[%clk 0:01:21.5]} 23. Bxf6 {[%clk 0:00:45.7]}
23... Qxf6 {[%clk 0:01:20.2]} 24. Qd2 {[%clk 0:00:40.1]} 24... Rfc8 {[%clk
0:01:03.4]} 25. h3 {[%clk 0:00:39.8]} 25... b6 {[%clk 0:00:58.8]} 26. Ba6 {[%clk
0:00:27.6]} 26... Rc2 {[%clk 0:00:37.8]} 27. Qe1 {[%clk 0:00:21.9]} 27... R8c3
{[%clk 0:00:37.8]} 28. Bf1 {[%clk 0:00:19.3]} 28... Be6 {[%clk 0:00:29.9]} 29.
Rf4 {[%clk 0:00:18.8]} 29... Qe5 {[%clk 0:00:27.8]} 30. Rd1 {[%clk 0:00:18.4]}
30... Rc8 {[%clk 0:00:20.5]} 31. Rfd4 {[%clk 0:00:17.8]} 31... g6 {[%clk
0:00:19.2]} 32. Bd3 {[%clk 0:00:17.1]} 32... R2c3 {[%clk 0:00:17.2]} 33. Bf1
{[%clk 0:00:16.2]} 33... Kg7 {[%clk 0:00:17.1]} 34. Rd8 {[%clk 0:00:16.2]} 34...
Rxd8 {[%clk 0:00:16.5]} 35. Rxd8 {[%clk 0:00:16.3]} 35... Rxa3 {[%clk
0:00:17.1]} 36. Qb4 {[%clk 0:00:16.1]} 36... Qc5 {[%clk 0:00:14.6]} 37. Qb2+
{[%clk 0:00:15.1]} 37... f6 {[%clk 0:00:12.4]} 38. Ra8 {[%clk 0:00:13.4]} 38...
h5 {[%clk 0:00:11.7]} 39. Rb8 {[%clk 0:00:13]} 39... Qc3 {[%clk 0:00:10.6]} 40.
Rb7+ {[%clk 0:00:12.8]} 40... Kh6 {[%clk 0:00:10.5]} 41. Qb5 {[%clk 0:00:13.2]}
41... Ra1 {[%clk 0:00:08.9]} 42. Qe8 {[%clk 0:00:11.3]} 42... Bc4 {[%clk
0:00:06.6]} 43. Qh8+ {[%clk 0:00:10.2]} 43... Kg5 {[%clk 0:00:07]} 44. h4+
{[%clk 0:00:10.1]} 44... Kxh4 {[%clk 0:00:07.4]} 45. g3+ {[%clk 0:00:09.7]}
45... Kg5 {[%clk 0:00:07.2]} 46. f4+ {[%clk 0:00:06.6]} 46... Kg4 {[%clk
0:00:07.3]} 47. Qc8+ {[%clk 0:00:05]} 47... f5 {[%clk 0:00:06.3]} 48. Qxc4
{[%clk 0:00:04.3]} 48... Qxc4 {[%clk 0:00:06.7]} 0-1

[Event "Early-Titled-Tuesday-Blitz-February-13-2024"]
[Site "Chess.com"]
[Date "2024.02.13"]
[Round "6"]
[White "OhanyanEminChess"]
[Black "BogdanDeac"]
[Result "0-1"]
[WhiteElo "2806"]
[BlackElo "2999"]
[TimeControl "180+1"]
[EndTime "9:10:43 PST"]
[Termination "BogdanDeac won by resignation"]

1. e4 {[%clk 0:03:00.9]} 1... c6 {[%clk 0:03:00]} 2. d4 {[%clk 0:02:56.7]} 2...
d5 {[%clk 0:03:00.9]} 3. Nc3 {[%clk 0:02:57]} 3... a6 {[%clk 0:02:49.6]} 4. Nf3
{[%clk 0:02:51.8]} 4... Bg4 {[%clk 0:02:49.1]} 5. h3 {[%clk 0:02:47.3]} 5... Bh5
{[%clk 0:02:48.8]} 6. Bd3 {[%clk 0:02:40.1]} 6... e6 {[%clk 0:02:47.2]} 7. O-O
{[%clk 0:02:37.8]} 7... Nf6 {[%clk 0:02:46.7]} 8. e5 {[%clk 0:02:12.4]} 8...
Nfd7 {[%clk 0:02:39.7]} 9. g4 {[%clk 0:02:12.6]} 9... Bg6 {[%clk 0:02:36.5]} 10.
Ne2 {[%clk 0:02:12.7]} 10... c5 {[%clk 0:02:26.4]} 11. c3 {[%clk 0:02:12.7]}
11... Nc6 {[%clk 0:02:26]} 12. Be3 {[%clk 0:02:04.8]} 12... Be7 {[%clk
0:02:20.3]} 13. Kg2 {[%clk 0:02:02.2]} 13... Qb6 {[%clk 0:02:09.8]} 14. Rb1
{[%clk 0:01:59.9]} 14... cxd4 {[%clk 0:01:45.2]} 15. cxd4 {[%clk 0:01:30]} 15...
Bxd3 {[%clk 0:01:36.5]} 16. Qxd3 {[%clk 0:01:30.9]} 16... Qb5 {[%clk 0:01:37]}
17. Qd2 {[%clk 0:01:18.4]} 17... Qa5 {[%clk 0:01:29.3]} 18. Qxa5 {[%clk
0:00:33.5]} 18... Nxa5 {[%clk 0:01:28.2]} 19. Rfc1 {[%clk 0:00:30.6]} 19... Nc4
{[%clk 0:01:23.5]} 20. Bf4 {[%clk 0:00:18.6]} 20... h6 {[%clk 0:01:12.1]} 21. b3
{[%clk 0:00:18]} 21... Na5 {[%clk 0:01:12.3]} 22. Ne1 {[%clk 0:00:10.4]} 22...
Nc6 {[%clk 0:00:49.3]} 23. Be3 {[%clk 0:00:10.8]} 23... a5 {[%clk 0:00:12.2]}
24. Nd3 {[%clk 0:00:11]} 24... g6 {[%clk 0:00:10.9]} 25. a4 {[%clk 0:00:05.3]}
25... Kd8 {[%clk 0:00:10.4]} 26. f4 {[%clk 0:00:05.2]} 26... h5 {[%clk
0:00:10.6]} 27. Ng3 {[%clk 0:00:04]} 27... hxg4 {[%clk 0:00:10.6]} 28. hxg4
{[%clk 0:00:04.9]} 28... Kc7 {[%clk 0:00:10.4]} 29. Rh1 {[%clk 0:00:03.5]} 29...
Rag8 {[%clk 0:00:09.9]} 30. Kf3 {[%clk 0:00:03.7]} 30... Nb4 {[%clk 0:00:06.9]}
31. Nxb4 {[%clk 0:00:03.6]} 31... axb4 {[%clk 0:00:07.8]} 32. f5 {[%clk
0:00:03.4]} 32... gxf5 {[%clk 0:00:06.8]} 33. gxf5 {[%clk 0:00:04.1]} 33... Bh4
{[%clk 0:00:06.8]} 34. Bf4 {[%clk 0:00:03.3]} 34... Bxg3 {[%clk 0:00:06.5]} 35.
Rxh8 {[%clk 0:00:02.3]} 35... Rxh8 {[%clk 0:00:06.2]} 36. Bxg3 {[%clk 0:00:03]}
36... Nb8 {[%clk 0:00:06.7]} 37. fxe6 {[%clk 0:00:02.3]} 37... fxe6 {[%clk
0:00:06.7]} 38. Bf2 {[%clk 0:00:02.5]} 38... Rh3+ {[%clk 0:00:06.1]} 39. Kg4
{[%clk 0:00:02.1]} 39... Rd3 {[%clk 0:00:06.2]} 40. Kg5 {[%clk 0:00:02.7]} 40...
Nc6 {[%clk 0:00:06.1]} 41. Bg1 {[%clk 0:00:02.4]} 41... Rf3 {[%clk 0:00:06.2]}
42. Kg6 {[%clk 0:00:02.5]} 42... Kd7 {[%clk 0:00:06.1]} 43. Rb2 {[%clk
0:00:01.9]} 43... Na5 {[%clk 0:00:05.9]} 44. Rh2 {[%clk 0:00:02.1]} 44... Rg3+
{[%clk 0:00:04.4]} 45. Kf7 {[%clk 0:00:01.9]} 45... Rxg1 {[%clk 0:00:04.8]} 46.
Rh7 {[%clk 0:00:02.6]} 46... Rf1+ {[%clk 0:00:04.8]} 47. Kg8+ {[%clk 0:00:03.2]}
47... Kd8 {[%clk 0:00:04.1]} 0-1

[Event "Early-Titled-Tuesday-Blitz-February-13-2024"]
[Site "Chess.com"]
[Date "2024.02.13"]
[Round "6"]
[White "tandaleo"]
[Black "CarlosjPineror"]
[Result "0-1"]
[WhiteElo "2533"]
[BlackElo "2700"]
[TimeControl "180+1"]
[EndTime "9:10:44 PST"]
[Termination "CarlosjPineror won on time"]

1. d4 {[%clk 0:02:53.5]} 1... Nf6 {[%clk 0:02:59.3]} 2. Nf3 {[%clk 0:02:53.8]}
2... e6 {[%clk 0:02:59.4]} 3. c4 {[%clk 0:02:54.1]} 3... Bb4+ {[%clk 0:02:56.1]}
4. Bd2 {[%clk 0:02:53.2]} 4... Qe7 {[%clk 0:02:56]} 5. g3 {[%clk 0:02:50.7]}
5... O-O {[%clk 0:02:55.6]} 6. Bg2 {[%clk 0:02:51.3]} 6... Bxd2+ {[%clk
0:02:54.9]} 7. Nbxd2 {[%clk 0:02:50.2]} 7... d6 {[%clk 0:02:55.8]} 8. O-O {[%clk
0:02:50.6]} 8... e5 {[%clk 0:02:56.2]} 9. dxe5 {[%clk 0:02:43.5]} 9... dxe5
{[%clk 0:02:57.1]} 10. Qc2 {[%clk 0:02:43]} 10... c6 {[%clk 0:02:56.1]} 11. Rfd1
{[%clk 0:02:42.1]} 11... Nbd7 {[%clk 0:02:46.2]} 12. Ng5 {[%clk 0:02:20.3]}
12... h6 {[%clk 0:02:44.9]} 13. Nge4 {[%clk 0:02:20.4]} 13... Nxe4 {[%clk
0:02:36.9]} 14. Nxe4 {[%clk 0:02:21.3]} 14... Nf6 {[%clk 0:02:36.3]} 15. Nd6
{[%clk 0:02:16.5]} 15... Be6 {[%clk 0:02:31.8]} 16. c5 {[%clk 0:02:16.7]} 16...
Ne8 {[%clk 0:02:27.5]} 17. Qc3 {[%clk 0:02:07.8]} 17... Nxd6 {[%clk 0:02:23.7]}
18. Rxd6 {[%clk 0:02:07.8]} 18... f6 {[%clk 0:02:22.3]} 19. a4 {[%clk 0:02:02]}
19... Rfd8 {[%clk 0:02:17]} 20. Rad1 {[%clk 0:02:02.3]} 20... Rxd6 {[%clk
0:02:17.5]} 21. cxd6 {[%clk 0:02:03]} 21... Qd7 {[%clk 0:02:15.3]} 22. b4 {[%clk
0:02:03.1]} 22... Rd8 {[%clk 0:02:08.5]} 23. Qc5 {[%clk 0:02:01.6]} 23... a6
{[%clk 0:02:06]} 24. a5 {[%clk 0:01:57.6]} 24... Qf7 {[%clk 0:02:02.5]} 25. Rd2
{[%clk 0:01:52.7]} 25... Rd7 {[%clk 0:02:00.4]} 26. e4 {[%clk 0:01:53.1]} 26...
g6 {[%clk 0:01:59.5]} 27. h4 {[%clk 0:01:45.1]} 27... g5 {[%clk 0:01:57.6]} 28.
hxg5 {[%clk 0:01:43.2]} 28... hxg5 {[%clk 0:01:58.5]} 29. f4 {[%clk 0:01:28.4]}
29... gxf4 {[%clk 0:01:58.1]} 30. gxf4 {[%clk 0:01:28.8]} 30... exf4 {[%clk
0:01:58.8]} 31. Bf3 {[%clk 0:01:28.7]} 31... Kf8 {[%clk 0:01:46.8]} 32. Rh2
{[%clk 0:01:24.6]} 32... Qg7+ {[%clk 0:01:44.5]} 33. Rg2 {[%clk 0:01:24.5]}
33... Qh6 {[%clk 0:01:40.6]} 34. e5 {[%clk 0:01:15.2]} 34... Qh4 {[%clk
0:01:27.2]} 35. Kf1 {[%clk 0:00:54.2]} 35... Qh1+ {[%clk 0:00:56.8]} 36. Kf2
{[%clk 0:00:53]} 36... Qa1 {[%clk 0:00:57.6]} 37. exf6 {[%clk 0:00:50.1]} 37...
Qxf6 {[%clk 0:00:56.2]} 38. Rh2 {[%clk 0:00:09.7]} 38... Qg7 {[%clk 0:00:29.9]}
39. Rh5 {[%clk 0:00:04.6]} 39... Qb2+ {[%clk 0:00:18.7]} 40. Kg1 {[%clk
0:00:04.3]} 40... Rg7+ {[%clk 0:00:16.5]} 41. Rg5 {[%clk 0:00:02.9]} 41... Rxg5+
{[%clk 0:00:14.2]} 42. Qxg5 {[%clk 0:00:02.9]} 42... Qd4+ {[%clk 0:00:14.7]} 43.
Kh2 {[%clk 0:00:03]} 43... Qxd6 {[%clk 0:00:14.3]} 44. Qf6+ {[%clk 0:00:03]}
44... Ke8 {[%clk 0:00:10.1]} 45. Bh5+ {[%clk 0:00:03.2]} 45... Kd7 {[%clk
0:00:10.8]} 46. Qg7+ {[%clk 0:00:03.6]} 46... Kc8 {[%clk 0:00:11.2]} 47. Qh8+
{[%clk 0:00:03.1]} 47... Kc7 {[%clk 0:00:11.7]} 48. Qg7+ {[%clk 0:00:02.7]}
48... Bd7 {[%clk 0:00:12.1]} 49. Kg2 {[%clk 0:00:01.8]} 49... Qd2+ {[%clk
0:00:11.6]} 50. Kf1 {[%clk 0:00:01.7]} 50... Qd3+ {[%clk 0:00:11.7]} 51. Kf2
{[%clk 0:00:02.1]} 51... Qe3+ {[%clk 0:00:12.2]} 52. Kf1 {[%clk 0:00:02.3]}
52... Qh3+ {[%clk 0:00:12.4]} 0-1

[Event "Early-Titled-Tuesday-Blitz-February-13-2024"]
[Site "Chess.com"]
[Date "2024.02.13"]
[Round "6"]
[White "Matols"]
[Black "Crazy_girl99"]
[Result "0-1"]
[WhiteElo "2396"]
[BlackElo "2592"]
[TimeControl "180+1"]
[EndTime "9:10:48 PST"]
[Termination "Crazy_girl99 won on time"]

1. d4 {[%clk 0:03:00.9]} 1... Nf6 {[%clk 0:02:59.9]} 2. c4 {[%clk 0:03:01.5]}
2... e6 {[%clk 0:03:00.3]} 3. g3 {[%clk 0:03:01.7]} 3... d5 {[%clk 0:02:59.8]}
4. Nf3 {[%clk 0:03:01.2]} 4... Be7 {[%clk 0:03:00.2]} 5. Bg2 {[%clk 0:03:00.9]}
5... O-O {[%clk 0:03:00.8]} 6. O-O {[%clk 0:03:01.4]} 6... dxc4 {[%clk
0:03:01.3]} 7. Qc2 {[%clk 0:02:59.8]} 7... c6 {[%clk 0:03:01.9]} 8. Qxc4 {[%clk
0:02:54.3]} 8... b5 {[%clk 0:03:02]} 9. Qc2 {[%clk 0:02:53.1]} 9... Bb7 {[%clk
0:03:02.1]} 10. Bg5 {[%clk 0:02:42.6]} 10... Nbd7 {[%clk 0:03:01.7]} 11. Rd1
{[%clk 0:02:33.3]} 11... Rc8 {[%clk 0:02:57.9]} 12. a4 {[%clk 0:02:21.9]} 12...
b4 {[%clk 0:02:54.9]} 13. Ne5 {[%clk 0:02:07.6]} 13... h6 {[%clk 0:02:41.1]} 14.
Bxf6 {[%clk 0:01:51.1]} 14... Bxf6 {[%clk 0:02:41]} 15. Nd2 {[%clk 0:01:34.5]}
15... Nb6 {[%clk 0:02:20.9]} 16. a5 {[%clk 0:01:19.5]} 16... Nd5 {[%clk
0:02:15]} 17. a6 {[%clk 0:01:16.7]} 17... Ba8 {[%clk 0:02:15.2]} 18. Nb3 {[%clk
0:01:13.9]} 18... Bxe5 {[%clk 0:02:12.9]} 19. dxe5 {[%clk 0:01:13.6]} 19... Qc7
{[%clk 0:02:11.9]} 20. Nc5 {[%clk 0:01:11]} 20... Rfd8 {[%clk 0:02:02.5]} 21.
Qe4 {[%clk 0:00:56.9]} 21... Rb8 {[%clk 0:01:56.8]} 22. Bh3 {[%clk 0:00:49.9]}
22... Rb5 {[%clk 0:01:49.4]} 23. Rdc1 {[%clk 0:00:40.9]} 23... Qe7 {[%clk
0:01:46.7]} 24. Qc4 {[%clk 0:00:19.8]} 24... Nb6 {[%clk 0:01:44.6]} 25. Qc2
{[%clk 0:00:18.4]} 25... Rd5 {[%clk 0:01:41.1]} 26. Nd3 {[%clk 0:00:16.1]} 26...
Rxe5 {[%clk 0:01:22.6]} 27. Nxe5 {[%clk 0:00:15.4]} 27... Rxe5 {[%clk
0:01:22.8]} 28. Bg2 {[%clk 0:00:15.6]} 28... c5 {[%clk 0:01:19.1]} 29. Bxa8
{[%clk 0:00:14.6]} 29... Nxa8 {[%clk 0:01:18.9]} 30. e3 {[%clk 0:00:14.4]} 30...
Nb6 {[%clk 0:01:17.2]} 31. Rd1 {[%clk 0:00:14.3]} 31... g6 {[%clk 0:01:15]} 32.
Rac1 {[%clk 0:00:13.6]} 32... c4 {[%clk 0:01:15.1]} 33. Rd4 {[%clk 0:00:13]}
33... Rc5 {[%clk 0:01:11]} 34. Qe2 {[%clk 0:00:12.3]} 34... Qc7 {[%clk 0:01:02]}
35. Rcd1 {[%clk 0:00:11.9]} 35... Kg7 {[%clk 0:00:52.9]} 36. e4 {[%clk
0:00:11.5]} 36... e5 {[%clk 0:00:48.4]} 37. Rd8 {[%clk 0:00:10.7]} 37... c3
{[%clk 0:00:47.5]} 38. bxc3 {[%clk 0:00:10.3]} 38... bxc3 {[%clk 0:00:47.7]} 39.
Qc2 {[%clk 0:00:10.5]} 39... Rb5 {[%clk 0:00:38.1]} 40. h4 {[%clk 0:00:09]}
40... Rb2 {[%clk 0:00:37.7]} 41. Qc1 {[%clk 0:00:09.4]} 41... Qc5 {[%clk
0:00:36.1]} 42. Rf1 {[%clk 0:00:06.8]} 42... Re2 {[%clk 0:00:32.4]} 43. Rd3
{[%clk 0:00:06.1]} 43... Na4 {[%clk 0:00:25]} 44. Rf3 {[%clk 0:00:05.5]} 44...
Rxe4 {[%clk 0:00:23.2]} 45. h5 {[%clk 0:00:05.6]} 45... g5 {[%clk 0:00:22.3]}
46. Qc2 {[%clk 0:00:04.9]} 46... Qd4 {[%clk 0:00:15.3]} 47. Rc1 {[%clk
0:00:02.6]} 47... g4 {[%clk 0:00:12.9]} 48. Rd3 {[%clk 0:00:02.2]} 48... Qc4
{[%clk 0:00:11.8]} 49. Rd7 {[%clk 0:00:01.9]} 49... Nb6 {[%clk 0:00:11.3]} 50.
Rb7 {[%clk 0:00:01.5]} 50... Nd5 {[%clk 0:00:10.1]} 51. Kg2 {[%clk 0:00:01.7]}
51... Qd4 {[%clk 0:00:09.6]} 52. Rc7 {[%clk 0:00:01.1]} 52... Qd2 {[%clk
0:00:09]} 0-1

[Event "Early-Titled-Tuesday-Blitz-February-13-2024"]
[Site "Chess.com"]
[Date "2024.02.13"]
[Round "6"]
[White "OscarAng"]
[Black "jaskol95"]
[Result "0-1"]
[WhiteElo "2329"]
[BlackElo "2582"]
[TimeControl "180+1"]
[EndTime "9:10:49 PST"]
[Termination "jaskol95 won by checkmate"]

1. d4 {[%clk 0:03:00.9]} 1... e6 {[%clk 0:02:57.9]} 2. e4 {[%clk 0:02:57.6]}
2... d5 {[%clk 0:02:57.5]} 3. Nc3 {[%clk 0:02:57.2]} 3... Bb4 {[%clk 0:02:56.6]}
4. exd5 {[%clk 0:02:49.4]} 4... exd5 {[%clk 0:02:55.7]} 5. Qf3 {[%clk
0:02:49.6]} 5... c6 {[%clk 0:02:29.3]} 6. Bd3 {[%clk 0:02:45.3]} 6... Nf6 {[%clk
0:02:29.3]} 7. Bg5 {[%clk 0:02:43.9]} 7... Be6 {[%clk 0:02:20.6]} 8. Ne2 {[%clk
0:02:39]} 8... Nbd7 {[%clk 0:02:20.2]} 9. Nf4 {[%clk 0:02:35]} 9... Qa5 {[%clk
0:02:14]} 10. O-O {[%clk 0:02:28]} 10... O-O {[%clk 0:02:09.5]} 11. Nxe6 {[%clk
0:02:10.1]} 11... fxe6 {[%clk 0:02:09.6]} 12. Qh3 {[%clk 0:02:09.2]} 12... Rae8
{[%clk 0:02:05.3]} 13. a3 {[%clk 0:02:02.6]} 13... Bxc3 {[%clk 0:01:59]} 14.
bxc3 {[%clk 0:02:03.5]} 14... e5 {[%clk 0:01:48]} 15. Bf5 {[%clk 0:01:30.6]}
15... Qc7 {[%clk 0:01:23]} 16. Rfe1 {[%clk 0:01:14.4]} 16... e4 {[%clk
0:01:20.2]} 17. Re3 {[%clk 0:00:52]} 17... g6 {[%clk 0:00:42.6]} 18. Be6+ {[%clk
0:00:49]} 18... Kh8 {[%clk 0:00:43]} 19. Bh6 {[%clk 0:00:45.9]} 19... Qd6 {[%clk
0:00:28.8]} 20. Bxd7 {[%clk 0:00:34.6]} 20... Nxd7 {[%clk 0:00:24.4]} 21. Bxf8
{[%clk 0:00:34.9]} 21... Rxf8 {[%clk 0:00:25.3]} 22. f3 {[%clk 0:00:30.6]} 22...
Qf4 {[%clk 0:00:10.5]} 23. Rae1 {[%clk 0:00:30.3]} 23... Nf6 {[%clk 0:00:08.5]}
24. fxe4 {[%clk 0:00:25.1]} 24... Nxe4 {[%clk 0:00:06.7]} 25. Rf3 {[%clk
0:00:25.6]} 25... Qd6 {[%clk 0:00:07.3]} 26. Rxf8+ {[%clk 0:00:20.9]} 26... Qxf8
{[%clk 0:00:08.2]} 27. Qf3 {[%clk 0:00:19.3]} 27... Qxa3 {[%clk 0:00:05.5]} 28.
h3 {[%clk 0:00:16]} 28... Kg7 {[%clk 0:00:05.1]} 29. Rf1 {[%clk 0:00:15.7]}
29... Qe7 {[%clk 0:00:05.1]} 30. Re1 {[%clk 0:00:15.5]} 30... a5 {[%clk
0:00:05.2]} 31. c4 {[%clk 0:00:15.5]} 31... a4 {[%clk 0:00:05.8]} 32. cxd5
{[%clk 0:00:16]} 32... cxd5 {[%clk 0:00:06.7]} 33. Re3 {[%clk 0:00:14.2]} 33...
Qf6 {[%clk 0:00:06.2]} 34. Qe2 {[%clk 0:00:12.7]} 34... Qxd4 {[%clk 0:00:06.2]}
35. Kh2 {[%clk 0:00:12.1]} 35... a3 {[%clk 0:00:06.6]} 36. c3 {[%clk 0:00:11.9]}
36... Qe5+ {[%clk 0:00:06.7]} 37. Kg1 {[%clk 0:00:11.3]} 37... Qd6 {[%clk
0:00:04.8]} 38. Qd3 {[%clk 0:00:10.7]} 38... Qc5 {[%clk 0:00:04.8]} 39. Kh2
{[%clk 0:00:09.9]} 39... Kf6 {[%clk 0:00:04.9]} 40. Rf3+ {[%clk 0:00:10]} 40...
Ke6 {[%clk 0:00:05.5]} 41. Qf1 {[%clk 0:00:10.4]} 41... Qd6+ {[%clk 0:00:05.9]}
42. Kh1 {[%clk 0:00:10.4]} 42... a2 {[%clk 0:00:06.6]} 43. Qe1 {[%clk
0:00:09.9]} 43... Kd7 {[%clk 0:00:06.6]} 44. Rd3 {[%clk 0:00:10.1]} 44... Qc5
{[%clk 0:00:04.8]} 45. Qxe4 {[%clk 0:00:10.5]} 45... a1=Q+ {[%clk 0:00:04.1]}
46. Kh2 {[%clk 0:00:11.4]} 46... Qag1+ {[%clk 0:00:04.5]} 47. Kg3 {[%clk
0:00:11.3]} 47... Qcf2+ {[%clk 0:00:04.8]} 48. Kg4 {[%clk 0:00:11]} 48... Qgxg2+
{[%clk 0:00:05.5]} 49. Qxg2 {[%clk 0:00:11.4]} 49... Qxg2+ {[%clk 0:00:06.4]}
50. Rg3 {[%clk 0:00:11.8]} 50... Qe4+ {[%clk 0:00:06.9]} 51. Kg5 {[%clk
0:00:12]} 51... Qe5+ {[%clk 0:00:07.4]} 52. Kh6 {[%clk 0:00:12.4]} 52... Qxg3
{[%clk 0:00:07.9]} 53. Kg7 {[%clk 0:00:12.9]} 53... Qxc3+ {[%clk 0:00:08]} 54.
Kg8 {[%clk 0:00:12.4]} 54... Qxh3 {[%clk 0:00:08.3]} 55. Kh8 {[%clk 0:00:12.4]}
55... Qe6 {[%clk 0:00:08.7]} 56. Kxh7 {[%clk 0:00:12.5]} 56... Qf6 {[%clk
0:00:08.6]} 57. Kg8 {[%clk 0:00:12.4]} 57... g5 {[%clk 0:00:09.5]} 58. Kh7
{[%clk 0:00:12.6]} 58... g4 {[%clk 0:00:10.4]} 59. Kg8 {[%clk 0:00:13.5]} 59...
g3 {[%clk 0:00:11.3]} 60. Kh7 {[%clk 0:00:14.4]} 60... g2 {[%clk 0:00:12.2]} 61.
Kg8 {[%clk 0:00:14.3]} 61... g1=Q+ {[%clk 0:00:13]} 62. Kh7 {[%clk 0:00:15.2]}
62... Qgg7# {[%clk 0:00:13.5]} 0-1

[Event "Early-Titled-Tuesday-Blitz-February-13-2024"]
[Site "Chess.com"]
[Date "2024.02.13"]
[Round "6"]
[White "scarabee43"]
[Black "Yan_Dyomin2010"]
[Result "1-0"]
[WhiteElo "2863"]
[BlackElo "2592"]
[TimeControl "180+1"]
[EndTime "9:10:53 PST"]
[Termination "scarabee43 won on time"]

1. Nf3 {[%clk 0:03:00.9]} 1... Nf6 {[%clk 0:02:56.3]} 2. c4 {[%clk 0:03:01]}
2... g6 {[%clk 0:02:55.1]} 3. Nc3 {[%clk 0:03:00.6]} 3... d5 {[%clk 0:02:53.9]}
4. cxd5 {[%clk 0:02:59.2]} 4... Nxd5 {[%clk 0:02:54.8]} 5. Qb3 {[%clk
0:02:56.9]} 5... Nb6 {[%clk 0:02:48.2]} 6. d4 {[%clk 0:02:57.2]} 6... Bg7 {[%clk
0:02:48.1]} 7. Bf4 {[%clk 0:02:56.7]} 7... O-O {[%clk 0:02:47]} 8. e3 {[%clk
0:02:52.9]} 8... N8d7 {[%clk 0:02:38.8]} 9. a4 {[%clk 0:02:43.8]} 9... Nf6
{[%clk 0:02:31.4]} 10. a5 {[%clk 0:02:35.9]} 10... Nbd5 {[%clk 0:02:28.9]} 11.
Be5 {[%clk 0:02:35.9]} 11... Nxc3 {[%clk 0:02:21.6]} 12. bxc3 {[%clk 0:02:36.4]}
12... c6 {[%clk 0:02:15.5]} 13. Bc4 {[%clk 0:02:35.5]} 13... Ne4 {[%clk
0:02:06.5]} 14. Bxg7 {[%clk 0:02:34.7]} 14... Kxg7 {[%clk 0:02:07.4]} 15. Ne5
{[%clk 0:02:21.3]} 15... Nd6 {[%clk 0:02:05.6]} 16. Be2 {[%clk 0:02:12.3]} 16...
Qc7 {[%clk 0:01:59.9]} 17. O-O {[%clk 0:02:11.7]} 17... Be6 {[%clk 0:01:49.2]}
18. Qb4 {[%clk 0:02:10.5]} 18... Rfc8 {[%clk 0:01:43.8]} 19. Nd3 {[%clk
0:02:04.4]} 19... Bc4 {[%clk 0:01:36.4]} 20. Rfb1 {[%clk 0:01:54.6]} 20... Bxd3
{[%clk 0:01:35.5]} 21. Bxd3 {[%clk 0:01:54.9]} 21... c5 {[%clk 0:01:36.4]} 22.
Qb2 {[%clk 0:01:45.9]} 22... cxd4 {[%clk 0:01:34.8]} 23. cxd4 {[%clk 0:01:46.1]}
23... Qc3 {[%clk 0:01:35.3]} 24. Be2 {[%clk 0:01:40.9]} 24... Qxb2 {[%clk
0:01:34]} 25. Rxb2 {[%clk 0:01:40.8]} 25... Rab8 {[%clk 0:01:30.6]} 26. h4
{[%clk 0:01:38.8]} 26... e6 {[%clk 0:01:25.8]} 27. Rab1 {[%clk 0:01:33.9]} 27...
Rc6 {[%clk 0:01:18.8]} 28. Bf3 {[%clk 0:01:28]} 28... Ra6 {[%clk 0:01:16.3]} 29.
Bxb7 {[%clk 0:01:10.7]} 29... Rxa5 {[%clk 0:01:15.6]} 30. Bf3 {[%clk 0:01:08.5]}
30... Rxb2 {[%clk 0:01:16.5]} 31. Rxb2 {[%clk 0:01:09]} 31... Ra1+ {[%clk
0:01:15.7]} 32. Kh2 {[%clk 0:01:09.5]} 32... a5 {[%clk 0:01:16.1]} 33. Rb6
{[%clk 0:01:09.4]} 33... Nf5 {[%clk 0:01:16.5]} 34. h5 {[%clk 0:01:09.1]} 34...
a4 {[%clk 0:01:14]} 35. Ra6 {[%clk 0:01:06.6]} 35... a3 {[%clk 0:01:13.4]} 36.
Ra7 {[%clk 0:01:01.9]} 36... Kf6 {[%clk 0:01:03.6]} 37. g4 {[%clk 0:00:55.2]}
37... Nh4 {[%clk 0:01:00.4]} 38. Be4 {[%clk 0:00:55.6]} 38... a2 {[%clk
0:00:54.7]} 39. d5 {[%clk 0:00:43.8]} 39... Ke5 {[%clk 0:00:48.6]} 40. dxe6
{[%clk 0:00:40.7]} 40... fxe6 {[%clk 0:00:19.3]} 41. Ba8 {[%clk 0:00:20.7]}
41... gxh5 {[%clk 0:00:18.4]} 42. gxh5 {[%clk 0:00:21]} 42... Nf5 {[%clk
0:00:18.2]} 43. Ra5+ {[%clk 0:00:20.4]} 43... Kf6 {[%clk 0:00:18.3]} 44. Ra6
{[%clk 0:00:19.4]} 44... Nd6 {[%clk 0:00:16.7]} 45. Bf3 {[%clk 0:00:17.9]} 45...
Nc4 {[%clk 0:00:16.1]} 46. Bd5 {[%clk 0:00:17.9]} 46... Nb6 {[%clk 0:00:12.8]}
47. Bxa2 {[%clk 0:00:16.9]} 47... Nd5 {[%clk 0:00:12.4]} 48. Kg3 {[%clk
0:00:13.6]} 48... Ke5 {[%clk 0:00:10.6]} 49. Kf3 {[%clk 0:00:13.3]} 49... Nc7
{[%clk 0:00:08.9]} 50. Ra5+ {[%clk 0:00:12.7]} 50... Kf6 {[%clk 0:00:08.5]} 51.
Ke4 {[%clk 0:00:12.1]} 51... Nd5 {[%clk 0:00:07]} 52. Kd4 {[%clk 0:00:10.9]} 1-0